Cogmind - Beta 17.1 @@@ ROGUE MODE // 2026.08.26 @ 17:30:44 Player: DietSnapple Result: Destroyed by H-66 Slayer with Heavy Assault Rifle Performance ------------- Evolutions (4) 2000 Regions Visited (7) 1400 Robots Destroyed (96) 480 Value Destroyed (2166) 2166 Prototype IDs (14) 280 Alien Tech Used (0) 0 Bonus (46) 46 TOTAL SCORE: 6372 Bonus ------- High Alert Combat Kills 15 Follower Combat Kills 208 Friendly Fire -177 Cogmind --------- Core Integrity 0/850 Matter 17/300 Energy 99/100 System Corruption 3% Temperature Cool (0) Movement Core (50) Location -6/Factory Parts ------- > --- POWER (1) -------- (None) > --- PROPULSION (5) --- (None) > --- UTILITY (7) ------ Machine Analyzer Enhanced Optical Array Advanced Signal Interpreter Launcher Guidance Computer Core Analyzer Hacking Suite > --- WEAPON (2) ------- (None) > --- INVENTORY (5) ---- Medium Storage Unit Rocket Array Datajack Improved Datajack Peak State ------------ > --- POWER ------------ Enhanced Nuclear Core > --- PROPULSION ------- Improved Flight Unit Improved Flight Unit Cesium-ion Thruster Xenon Bombardment Thruster Cooled VTOL Module > --- UTILITY ---------- Medium Storage Unit Machine Analyzer Enhanced Optical Array Launcher Guidance Computer Core Analyzer Reaction Control System Hacking Suite > --- WEAPON ----------- Improved Datajack Makeshift Spear > --- INVENTORY -------- Compact Wheel Proton Cannon Rocket Array Rocket Array Datajack Signal Generator [Rating: 55] Favorites ----------- Power Cooled Ion Engine Engine Cooled Ion Engine Power Core Micro Nuclear Core Propulsion Light Treads Treads Light Treads Wheel Compact Wheel Hover Unit Aerolev Unit Flight Unit Improved Flight Unit Utility High-capacity Storage Unit Device Improved Trap Extractor Storage High-capacity Storage Unit Processor Machine Analyzer Hackware Hacking Suite Protection Light Armor Plating Weapon Shotgun Energy Gun Small Laser Energy Cannon Advanced Beam Cannon Ballistic Gun Shotgun Ballistic Cannon Bore Cannon Launcher Rocket Array Piercing Weapon Makeshift Spear Special Melee Weapon Datajack Build | -11 -10 -10 -9 -9 -8 -7 -6 ------- Run | Yrd Mat Min Mat Min Mat Fac Fac Slots Evolved 8 | . . . 2 . 2 2 2 Power . | . . . . . . . . Propulsion 3 | . . . . . 1 1 1 Utility 5 | . . . 2 . 1 1 1 Weapon . | . . . . . . . . Parts Attached 72 | 8 6 3 18 . 8 20 9 Power 7 | 1 1 . 2 . . 2 1 Engine 5 | 1 1 . 2 . . 1 . Core 2 | . . . . . . 1 1 Reactor . | . . . . . . . . Propulsion 18 | 2 . 2 3 . 3 6 2 Treads 8 | 2 . 1 3 . 2 . . Leg . | . . . . . . . . Wheel 2 | . . 1 . . . . 1 Hover 1 | . . . . . 1 . . Flight 7 | . . . . . . 6 1 Utility 24 | 2 2 1 6 . 3 7 3 Device 5 | 1 . 1 1 . 1 1 . Storage 4 | 1 2 . . . . 1 . Processor 7 | . . . 1 . . 3 3 Hackware 3 | . . . 1 . . 2 . Protection 5 | . . . 3 . 2 . . Artifact . | . . . . . . . . Weapon 23 | 3 3 . 7 . 2 5 3 Energy Gun 3 | 1 . . 2 . . . . Energy Cannon 2 | . . . 1 . . . 1 Ballistic Gun 9 | 2 3 . 3 . 1 . . Ballistic Cannon 1 | . . . . . . 1 . Launcher 4 | . . . . . 1 1 2 Special Weapon . | . . . . . . . . Impact Weapon . | . . . . . . . . Slashing Weapon . | . . . . . . . . Piercing Weapon 1 | . . . . . . 1 . Special Melee Weapon 3 | . . . 1 . . 2 . Unidentified Prototypes 7 | . . . 3 . 1 2 1 Parts Lost 30 | . . 2 6 . 10 1 11 Power 3 | . . . 1 . 1 . 1 Propulsion 14 | . . 1 3 . 4 . 6 Utility 6 | . . 1 1 . 2 1 1 Weapon 7 | . . . 1 . 3 . 3 Highest Loss Streak 9 | . . 1 2 . 9 1 6 To Critical Strikes . | . . . . . . . . Average Backups 12 | 1 6 9 17 19 18 5 4 Power . | . 1 2 . . . . . Propulsion 1 | . 1 . 2 1 . . . Utility 6 | . 2 3 9 12 10 2 . Weapon 3 | . 1 3 4 6 6 3 2 Tool/Special . | . . . . . . . . Unused Backups 16 | . 1 . 5 . . 10 . Power 3 | . 1 . 1 . . 1 . Propulsion 1 | . . . 1 . . . . Utility 5 | . . . . . . 5 . Weapon 6 | . . . 3 . . 3 . Tool/Special 1 | . . . . . . 1 . Average Slot Usage (%) 90 | . 100 88 93 88 81 87 77 Engine 10 | . 14 14 10 11 8 1 . Treads 18 | . 28 27 19 . 7 . . Wheel 1 | . . . 1 11 4 . . Flight 2 | . . . . . . 27 20 Device 4 | . 14 2 1 . 16 1 2 Storage 11 | . 14 14 11 11 9 5 5 Processor 6 | . . . 9 11 . 20 25 Hackware 6 | . . . 11 11 9 13 6 Protection 3 | . . . 6 11 7 . . Energy Cannon 1 | . . . 1 11 6 . . Ballistic Gun 17 | . 28 28 18 . 1 . . Special Melee Weapon 2 | . . . 1 11 8 1 3 Peak Build Rating 55 | 7 12 19 27 21 29 44 55 Average Rating 20 | 4 9 13 24 21 25 39 42 On Entrance 17 | . 7 12 19 21 21 17 42 Avg Prop Armor Cover (%) 9 | . . 12 . . 10 16 4 Naked Turns . | . . . . . . . . Heaviest Build 66 | 12 55 57 60 56 66 19 28 Greatest Support 42 | 40 40 42 42 16 40 21 26 Greatest Overweight (x) 15 | . 1 3 3 3 15 . 3 Average Overweight (x) . | . . 1 1 3 3 . . Largest Inventory Capacity 20 | 8 20 20 20 20 20 20 10 Average Capacity 18 | 6 16 20 20 20 20 9 9 Most Carried 20 | 3 12 15 20 20 20 17 8 Average Carried 13 | 1 6 10 18 20 19 6 5 Final Capacity 20 | 8 20 20 20 20 20 10 5 Final Carried 20 | 3 7 14 20 20 18 7 4 Class Distribution -------------------- 89% | Mutant 8% | Scavenger-Sprinter Dominant Class ---------------- Mutant | -10/Materials Mutant | -10/Mines Mutant | -9/Materials Mutant | -9/Mines Mutant | -8/Materials Scavenger-Sprinter | -7/Factory Scavenger-Sprinter | -6/Factory Resources | -11 -10 -10 -9 -9 -8 -7 -6 ----------- Run | Yrd Mat Min Mat Min Mat Fac Fac Matter Collected 2282 | 248 375 96 1023 104 170 224 42 Remotely . | . . . . . . . . Salvage Created 2728 | 11 368 80 1207 39 608 210 205 Parts 179 | 3 17 11 81 5 28 19 15 Haulers Intercepted 10 | . 1 . 5 . 2 2 . Recyclers Shooed 4 | 1 . . 3 . . . . Parts Field Recycled . | . . . . . . . . Retrieved Matter . | . . . . . . . . Parts Self-Destructed . | . . . . . . . . Prevented . | . . . . . . . . Parts Restored . | . . . . . . . . Kills | -11 -10 -10 -9 -9 -8 -7 -6 ------- Run | Yrd Mat Min Mat Min Mat Fac Fac Combat Hostiles Destroyed 55 | . 10 4 23 . 11 1 6 Melee 1 | . . . . . . 1 . Guns 38 | . 10 4 22 . 2 . . Cannons 7 | . . . 1 . 6 . . AOE 9 | . . . . . 3 . 6 Classes Destroyed 14 | 1 4 . 4 . 2 1 2 Worker 17 | . 1 . 7 2 3 . 4 Builder 4 | . . . . . . . 4 Tunneler 4 | 1 . 1 1 . . 1 . Hauler 10 | . 1 . 5 . 2 2 . Recycler 1 | . . . 1 . . . . Operator 2 | . . . 1 . . 1 . Watcher 1 | . . . . . . . 1 Swarmer 13 | . 3 4 3 . . . 3 Grunt 30 | . 7 . 14 . 9 . . Brawler 1 | . . . 1 . . . . Duelist 1 | . . . . . 1 . . Sentry 7 | . . . 5 . 1 . 1 Programmer 3 | . . . . . . 1 2 Zionite 1 | . . . . . 1 . . Thug 1 | . . . 1 . . . . Best Kill Streak 9 | 1 4 3 9 1 4 1 9 Combat Bots Only 6 | . 3 3 6 . 3 1 4 Max Kills in Single Turn 2 | 1 1 2 2 1 2 1 2 Gunslinging 1 | . . 1 . . . . . Exploded 2 | . . . . . 2 . 2 Melee 1 | . . . . . . 1 . Uniques/NPCs Destroyed . | . . . . . . . . Combat | -11 -10 -10 -9 -9 -8 -7 -6 -------- Run | Yrd Mat Min Mat Min Mat Fac Fac Hostile Shots Fired 557 | . 41 19 140 . 100 43 214 Missed 206 | . 13 6 33 . 23 26 105 Hits 351 | . 28 13 107 . 77 17 109 Projectile 351 | . 28 13 107 . 77 17 109 AOE 6 | . . 6 . . . . . Critical Strikes 5 | . 1 . 1 . 1 . 2 Damage Taken 5232 | . 319 361 1350 . 1310 160 1732 Core 1519 | . 59 78 257 . 201 64 860 Absorbed by Shields . | . . . . . . . . Core Remaining (%) 66 | 100 . 45 . 35 63 90 . Volleys Fired 226 | 4 36 7 110 2 50 . 17 Largest 2 | 2 2 2 2 1 1 . 1 Hottest 75 | 40 46 46 68 68 68 . 75 Shots Fired 366 | 8 72 14 203 2 50 . 17 Gun 303 | 8 72 14 191 . 18 . . Cannon 50 | . . . 12 2 28 . 8 Launcher 13 | . . . . . 4 . 9 Special . | . . . . . . . . Kinetic 303 | 8 72 14 191 . 18 . . Thermal 42 | . . . 12 2 28 . . Explosive 13 | . . . . . 4 . 9 Electromagnetic 8 | . . . . . . . 8 Robot Hit Streak 11 | 7 11 3 9 4 10 . 4 Robot Miss Streak 7 | . 5 4 7 . 3 . 3 Penetration Max . | . . . . . . . . Secondary Targets 4 | . 1 1 2 . . . . Max Gunslinging Chain 1 | . 1 1 1 . . . . Shots Hit Robots 271 | 7 48 9 147 2 41 7 10 Core Hits 162 | 1 26 7 63 2 25 6 32 Critical Kills . | . . . . . . . . Critical Parts Destroyed 1 | . . . 1 . . . . Critical Strikes 4 | . . . 2 . . . 2 Destroy 2 | . . . 2 . . . . Impale 2 | . . . . . . . 2 Melee Attacks 28 | . . . 2 . 1 14 11 Impact . | . . . . . . . . Slashing . | . . . . . . . . Piercing 25 | . . . . . . 14 11 Sneak Attacks 10 | . . . 2 . 1 3 4 Combat Hostiles . | . . . . . . . . Follow-up Attacks . | . . . . . . . . Damage Inflicted 6524 | 72 706 110 2669 42 1221 300 1404 Guns 3690 | 72 706 110 2505 . 297 . . Cannons 720 | . . . 164 42 415 . 99 Explosions 1550 | . . . . . 509 . 1041 Melee 564 | . . . . . . 300 264 Ramming . | . . . . . . . . Kinetic 3690 | 72 706 110 2505 . 297 . . Thermal 814 | . . . 164 42 415 . 193 Explosive 1357 | . . . . . 509 . 848 Electromagnetic 99 | . . . . . . . 99 Impact . | . . . . . . . . Slashing . | . . . . . . . . Piercing 564 | . . . . . . 300 264 Highest Corruption 4 | . . . 4 4 . . 3 Average Corruption 3 | . . . 4 4 . . 1 Corruption Purged . | . . . . . . . . Corruption Blocked . | . . . . . . . . Effects 53 | . . . 40 13 . . . Message Errors 10 | . . . 6 4 . . . Matter Fused 15 | . . . 12 3 . . . Heat Flow Errors 5 | . . . 4 1 . . . Energy Discharges 8 | . . . 5 3 . . . Parts Rejected 2 | . . . 2 . . . . Parts Fused 1 | . . . 1 . . . . Data Loss (minor) 3 | . . . 2 1 . . . Data Loss (major) 4 | . . . 3 1 . . . Misfires 2 | . . . 2 . . . . Alerts 1 | . . . 1 . . . . Weapon Failures 2 | . . . 2 . . . . Overload Shots . | . . . . . . . . Overflow Damage 140 | . . . . . . . 140 Projectiles . | . . . . . . . . Explosions 36 | . . . . . . . 36 Melee 104 | . . . . . . . 104 Knockbacks . | . . . . . . . . Impact . | . . . . . . . . Kinetic . | . . . . . . . . Secondary . | . . . . . . . . Self-Inflicted Damage 288 | . . . . . . . 288 Shots 13 | . . . . . . . 13 Rammed . | . . . . . . . . Targets Rammed . | . . . . . . . . Kicked . | . . . . . . . . Crushed . | . . . . . . . . Highest Temperature 273 | . 20 5 273 91 239 2 128 Average Temperature 74 | . 4 5 109 28 62 2 48 Received Heat Transfer 1308 | . 177 12 555 . 429 42 93 Siege Activations . | . . . . . . . . Martial Activations . | . . . . . . . . Shielding Activations . | . . . . . . . . Robots Disrupted . | . . . . . . . . Combat Hostiles . | . . . . . . . . Robots Corrupted . | . . . . . . . . Combat Hostiles . | . . . . . . . . Parts Fried . | . . . . . . . . Impact Corruptions . | . . . . . . . . Robots Melted . | . . . . . . . . Combat Hostiles . | . . . . . . . . Parts Melted 8 | . . . 2 . 6 . . Heat Transferred 1210 | . . . 296 74 740 . 100 Parts Sabotaged . | . . . . . . . . Parts Stolen . | . . . . . . . . Parts Stripped . | . . . . . . . . Power Chain Reactions . | . . . . . . . . Alert | -11 -10 -10 -9 -9 -8 -7 -6 ------- Run | Yrd Mat Min Mat Min Mat Fac Fac Maximum Alert Level 2 | . . . . . 1 . 2 Low Security (%) 94 | 100 100 100 100 100 57 100 49 Level 1 5 | . . . . . 42 . 46 Level 2 . | . . . . . . . 3 Level 3 . | . . . . . . . . Level 4 . | . . . . . . . . Level 5 . | . . . . . . . . High Security . | . . . . . . . . Max Security . | . . . . . . . . Peak Influence 422 | 5 126 70 177 32 289 76 422 Initial 74 | . . 26 . 27 . 74 2 Average 52 | . 38 3 80 1 156 26 188 Influence Increases 2547 | 5 299 95 695 10 546 188 709 Destroy 0b10 Robot/C 1220 | . 200 80 460 . 340 20 120 Destroy 0b10 Robot/NC 200 | 5 10 5 75 10 30 20 45 Destroy Leader 334 | . 62 10 120 . 86 14 42 Allied During Kill 71 | . . . . . 71 . . Successful Hack 93 | . 12 . 38 . . 28 15 Disable Machine 60 | . . . . . . . 60 Destroy Structure 134 | . . . 2 . 19 1 112 Lose Combat Pursuer 435 | . 15 . . . . 105 315 Influence Decreases 2133 | 5 231 163 624 81 382 345 302 Entered New Map 181 | . . 42 . 44 . 90 5 Time Decay 1534 | 5 231 121 564 37 202 187 187 Lost Part 280 | . . . 60 . 100 10 110 Lost Ally 138 | . . . . . 80 58 . Squads Dispatched 15 | . 2 . 2 . 2 4 5 Investigation 7 | . 2 . . . . 2 3 Extermination 2 | . . . . . . 1 1 Reinforcement 6 | . . . 2 . 2 1 1 Assault . | . . . . . . . . Garrison . | . . . . . . . . Intercept . | . . . . . . . . Searches Triggered . | . . . . . . . . Construction Impeded 1 | . . . . . . . 1 Haulers Reinforced . | . . . . . . . . Active Scanning Responses . | . . . . . . . . Cargo Convoy Interrupts . | . . . . . . . . Stealth | -11 -10 -10 -9 -9 -8 -7 -6 --------- Run | Yrd Mat Min Mat Min Mat Fac Fac Distress Signals 5 | . 1 . . . 2 1 1 Communications Jammed . | . . . . . . . . Distress Signals . | . . . . . . . . Times Spotted 142 | . 17 7 44 . 23 17 34 Peak Tracking Total 9 | . 4 3 5 . 7 9 9 Tactical Retreats 14 | . 1 . . . . 5 8 Traps | -11 -10 -10 -9 -9 -8 -7 -6 ------- Run | Yrd Mat Min Mat Min Mat Fac Fac Traps Triggered 4 | . 2 . . . 1 . 1 Indirectly . | . . . . . . . . Trap Hack Attempts 22 | . . . 22 . . . . Triggered . | . . . . . . . . Disarmed . | . . . . . . . . Reprogrammed 3 | . . . 3 . . . . Reused . | . . . . . . . . Traps Extracted 3 | . . . 3 . . . . Installed . | . . . . . . . . Triggered . | . . . . . . . . Most Traps Carried 3 | . . . 3 3 3 . . Machines | -11 -10 -10 -9 -9 -8 -7 -6 ---------- Run | Yrd Mat Min Mat Min Mat Fac Fac Machines Disabled 4 | . . . . . . . 4 Max in Single Turn 4 | . . . . . . . 4 Garrison Access 2 | . . . . . . 1 1 Machines Repaired . | . . . . . . . . Machines Dismantled . | . . . . . . . . Machines Sabotaged . | . . . . . . . . Overloaded Fab Kills . | . . . . . . . . Hacking | -11 -10 -10 -9 -9 -8 -7 -6 --------- Run | Yrd Mat Min Mat Min Mat Fac Fac Machines Accessed 21 | . 4 1 4 . . 8 4 Terminals 15 | . 4 . 4 . . 5 2 Fabricators 3 | . . . . . . 2 1 Repair Stations . | . . . . . . . . Recycling Units . | . . . . . . . . Scanalyzers . | . . . . . . . . Garrison Access 2 | . . . . . . 1 1 Total Hacks 53 | . 12 1 7 . . 20 13 Successful 28 | . 6 1 5 . . 12 4 Failed 25 | . 6 . 2 . . 8 9 Catastrophic 3 | . . . . . . 1 2 Database Lockouts . | . . . . . . . . Manual 12 | . . . 3 . . 3 6 Terminals 39 | . 12 . 7 . . 12 8 Fabricators 8 | . . . . . . 5 3 Repair Stations . | . . . . . . . . Recycling Units . | . . . . . . . . Scanalyzers . | . . . . . . . . Garrison Access 5 | . . . . . . 3 2 Terminal Hacks 21 | . 6 1 5 . . 7 2 Record 1 | . . . . . . 1 . Part Schematic 2 | . . . . . . . 2 Prototype ID Bank 3 | . 2 . . . . 1 . Open Door 1 | . . 1 . . . . . Open DSF 1 | . . . . . . 1 . Level Access Points 1 | . . . . . . 1 . Emergency Access Points 1 | . 1 . . . . . . Locate Traps 6 | . 1 . 4 . . 1 . Hauler Manifests 1 | . 1 . . . . . . Registered Components 3 | . 1 . 1 . . 1 . Zone Layout 1 | . . . . . . 1 . Fabricator Hacks 5 | . . . . . . 4 1 Network Status 3 | . . . . . . 3 . Load Schematic 1 | . . . . . . . 1 Build 1 | . . . . . . 1 . Repair Station Hacks . | . . . . . . . . Recycling Unit Hacks . | . . . . . . . . Scanalyzer . | . . . . . . . . Garrison Access Hacks 2 | . . . . . . 1 1 Seal Access 2 | . . . . . . 1 1 Unauthorized Hacks . | . . . . . . . . Terminals . | . . . . . . . . Fabricators . | . . . . . . . . Repair Stations . | . . . . . . . . Recycling Units . | . . . . . . . . Scanalyzers . | . . . . . . . . Garrison Access . | . . . . . . . . Data Cores Recovered . | . . . . . . . . Used . | . . . . . . . . Hacking Detections 19 | . 4 . 4 . . 7 4 Full Trace Events 4 | . . . . . . 2 2 Feedback Events . | . . . . . . . . Feedback Blocked . | . . . . . . . . Robot Schematics Acquired . | . . . . . . . . Robots Built 4 | . . . . . . 4 . Authchips . | . . . . . . . . Time 134 | . . . . . . 134 . Total Robot Build Rating 16 | . . . . . . 16 . Part Schematics Acquired 2 | . . . . . . . 2 Parts Built . | . . . . . . . . Authchips . | . . . . . . . . Time . | . . . . . . . . Total Part Build Rating . | . . . . . . . . Part Studies Acquired . | . . . . . . . . Parts Repaired . | . . . . . . . . Time . | . . . . . . . . Parts Recycled . | . . . . . . . . Recycled Matter . | . . . . . . . . Retrieved Matter . | . . . . . . . . Retrieved Components . | . . . . . . . . Parts Scanalyzed . | . . . . . . . . Part Schematics Acquired . | . . . . . . . . Parts Damaged . | . . . . . . . . Bothacking | -11 -10 -10 -9 -9 -8 -7 -6 ------------ Run | Yrd Mat Min Mat Min Mat Fac Fac Used RIF Installer . | . . . . . . . . Robots Hacked 1 | . . . 1 . . . . Non-combat 1 | . . . 1 . . . . Combat . | . . . . . . . . Robot Hacks Applied 2 | . . . 2 . . . . no_distress 1 | . . . 1 . . . . find_recycling 1 | . . . 1 . . . . Relay Couplers Released . | . . . . . . . . Fabnet Peak Effective % . | . . . . . . . . Robots Rewired . | . . . . . . . . Allies Hacked . | . . . . . . . . Hacks Repelled . | . . . . . . . . Allies | -11 -10 -10 -9 -9 -8 -7 -6 -------- Run | Yrd Mat Min Mat Min Mat Fac Fac Total Allies 9 | . . . . 5 . 4 . Largest Group 5 | . . . . 5 5 4 . Highest-Rated Group 82 | . . . . 82 82 48 . Highest-Rated Ally 31 | . . . . 31 31 12 . Total Orders . | . . . . . . . . Ally Attacks 99 | . . . . . 88 11 . Total Damage 1113 | . . . . . 1005 108 . Kills 7 | . . . . . 7 . . Allies Corrupted . | . . . . . . . . Allies Melted . | . . . . . . . . Intel | -11 -10 -10 -9 -9 -8 -7 -6 ------- Run | Yrd Mat Min Mat Min Mat Fac Fac Active Infowar (turns) 5034 | 36 782 70 2156 684 462 422 422 Optics 777 | . . . . . . 355 422 Traps 554 | . . . 111 . 443 . . Seismic 888 | 36 782 70 . . . . . Machine Analysis 3703 | . . . 2156 684 19 422 422 Robot Analysis Total . | . . . . . . . . Derelict Logs Recovered 2 | . . 1 . 1 . . . Drone Launches . | . . . . . . . . Drone Recoveries . | . . . . . . . . Exploration | -11 -10 -10 -9 -9 -8 -7 -6 ------------- Run | Yrd Mat Min Mat Min Mat Fac Fac Turns Passed 7654 | 129 782 2232 2515 684 465 425 422 Spaces Moved 4841 | 70 353 812 972 466 167 1043 958 Core 116 | 9 . . . . 3 . 104 Treads 2031 | 61 353 808 773 . 36 . . Legs . | . . . . . . . . Wheels 829 | . . 4 199 466 128 . 32 Hover 20 | . . . . . . 20 . Flight 1845 | . . . . . . 1023 822 Fastest Speed 26 | 50 160 145 145 145 145 29 26 Average Speed 133 | 145 179 237 217 145 208 31 34 Slowest Speed 800 | 160 240 240 240 145 800 50 200 Overloaded Moves . | . . . . . . . . Propulsion Burnouts . | . . . . . . . . Robots Hopped 5 | . . . . . . 3 2 Potential Cave-ins . | . . . . . . . . Cave-ins Triggered . | . . . . . . . . Exploration Rate (%) 52 | 4 66 99 71 94 21 35 27 Regions Visited 7 Branch Regions 2 Pre-discovered Areas 1 | . . . . 1 . . . Known Exits Taken 2 | . . 1 . . . 1 . Unknown Exits Taken 5 | 1 1 . 1 1 1 . . Scrap Searched 3 | . . 2 . 1 . . . Spaces Dug 6 | . . . . . . 1 5 Terrain Destroyed 176 | . . . . . 23 1 152 Melee 6 | . . . . . . 1 5 Projectile 2 | . . . . . 2 . . AOE 168 | . . . . . 21 . 147 Terrain Rammed . | . . . . . . . . Walls Destroyed . | . . . . . . . . Machines Disabled . | . . . . . . . . Actions | -11 -10 -10 -9 -9 -8 -7 -6 --------- Run | Yrd Mat Min Mat Min Mat Fac Fac Total 5626 | 85 432 1099 1169 472 236 1128 1005 Wait 334 | 1 24 269 8 5 1 22 4 Move 4824 | 69 352 811 971 465 166 1036 954 Hop 5 | . . . . . . 3 2 Pick Up 45 | 2 6 8 15 . 3 9 2 Fast Attach 28 | 7 . . 6 . 4 8 3 Attach 21 | . . 2 5 . 4 5 5 Detach 8 | . . . 2 . . 3 3 Swap 41 | 2 6 2 17 . 5 7 2 Drop 44 | . 8 . 11 . 2 21 2 Fire 226 | 4 36 7 110 2 50 . 17 Melee 28 | . . . 2 . 1 14 11 Ram . | . . . . . . . . Kick . | . . . . . . . . Crush . | . . . . . . . . Escape Stasis . | . . . . . . . . Rewire . | . . . . . . . . Trap 22 | . . . 22 . . . . Miscellaneous . | . . . . . . . . Route ------- -11/Scrapyard -10/Materials (discovered 3 exits: *Mat x2 / *Min) -10/Mines (discovered 3 exits: *Mat x2 / [*Sub]) -9/Materials (discovered 3 exits: [*Mat x2] / [*Min]) -9/Mines (discovered 2 exits: [*Mat x2]) -8/Materials -7/Factory (discovered 4 exits: *Fac x4) -6/Factory History --------- Turn | Location | Event 5 | -11/Scrapyard | Discovered new exit (range 15) 130 | -11/Scrapyard | Entered Materials 249 | -10/Materials | Discovered new exit (range 15) 310 | -10/Materials | Build established: Mutant 744 | -10/Materials | Discovered new exit (range 16) 828 | -10/Materials | Discovered new exit (range 16) 912 | -10/Materials | Entered Mines 913 | -10/Mines | Met a Derelict testing a Signal Generator 922 | -10/Mines | Found Signal Generator 1138 | -10/Mines | Identified exit to Materials 1170 | -10/Mines | Assembled infested the area 1175 | -10/Mines | Assisted by a Guerilla fighting off Assembled 1525 | -10/Mines | Core integrity fell below 50% 1585 | -10/Mines | Discovered exit to Materials (range 10) 1736 | -10/Mines | Discovered new exit (range 7) 2519 | -10/Mines | A weapon hastily lodged in a ceiling crevice suddenly fell to the ground 2735 | -10/Mines | Met a Derelict who couldn't figure out how to use a Trap Extractor 3144 | -10/Mines | Entered Materials 3144 | -9/Materials | Evolved 2 slots: Utility x2 3336 | -9/Materials | Discovered new exit (range 15) 3802 | -9/Materials | Discovered new exit (range 8) 4401 | -9/Materials | Core integrity fell below 50% 5534 | -9/Materials | Discovered new exit (range 8) 5659 | -9/Materials | Entered Mines 5768 | -9/Mines | Learned location of Storage (-8) 5907 | -9/Mines | Discovered new exit (range 8) 5933 | -9/Mines | Discovered new exit (range 8) 5952 | -9/Mines | Assisted by bots powering up and referring to "LRC-V3" 6123 | -9/Mines | Learned Materials security intel 6343 | -9/Mines | Entered Materials 6343 | -8/Materials | Accompanied by 5 allies 6343 | -8/Materials | Evolved 2 slots: Propulsion x1, Utility x1 6348 | -8/Materials | Led the pair of lost Derelicts to an unsafe place 6656 | -8/Materials | Discovered new exit (range 7) 6808 | -8/Materials | Entered Factory 6808 | -7/Factory | Evolved 2 slots: Propulsion x1, Utility x1 6836 | -7/Factory | Lost 9 parts (1p3n2u3w) 6898 | -7/Factory | Found Prototype Launcher 6898 | -7/Factory | Identified Rocket Array 6906 | -7/Factory | Found Rocket Array 6907 | -7/Factory | Found Rocket Array 6911 | -7/Factory | Found Rocket Array 7044 | -7/Factory | Identified exit to Factory 7202 | -7/Factory | Fabricated S-27 Virus? 7233 | -7/Factory | Entered another Factory area 7233 | -6/Factory | Evolved 2 slots: Propulsion x1, Utility x1 7301 | -6/Factory | Build established: Scavenger-Sprinter 7333 | -6/Factory | Spotted B-75 Beast 7505 | -6/Factory | Lost 5 parts (4n1u) 7564 | -6/Factory | Core integrity fell below 50% 7603 | -6/Factory | Core integrity fell below 20% 7630 | -6/Factory | Lost 6 parts (1p2n3w) 7655 | -6/Factory | Destroyed by H-66 Slayer with Heavy Assault Rifle Last Messages --------------- 07532_ Slug penetrates H-66 Slayer. 07532_ H-66 Slayer destroyed. 07533_ Enh. Nuclear Core destroyed. 07550_ Com. Wheel destroyed. 07573_ Mak. Spear destroyed. 07580_ Penetrated by Slug. 07593_ Acquired Adv. Signal Interpreter. 07597_ Door malfunctions. 07599_ Penetrated by Slug. 07599_ Cld. VTOL Module destroyed. 07602_ Penetrated by Slug. 07639_ Fusion Modulator explodes. 07639_ P-60 Hacker destroyed. 07639_ Fusion Modulator explodes. 07639_ P-60 Hacker destroyed. 07646_ Dropped Signal Generator. 07649_ Acquired Signal Generator. 07650_ Dropped Signal Generator. 07652_ Slug penetrates Wall. 07652_ Penetrated by Slug. Map ----- +----------------------------------------------------+ | ??????????????????????????????? | | ??????????????????????????????? | | ??????????????????????????????? | | ??????????????????????????????? | | ??????????????????????????????? | | ??????????????????????????????? | | ??????????????????????????????? | | ??????????????????????????????? | | ??????????????????????????????? | | ??????????????????????????????? | | ??????????????????????????????? | | ??????????????????????????????? | | ??????????????????????????????? | | ??????????????????????????????? | | ????????????????????????"""?""" | | ????????????????????????"""?""" | | ???????????????????"?"??"""?""" | | ???????????????????"T"???""??"" | | ???????????????????"""???""??"" | | ??????????????????????????????? | | ??????????????????????????????? | | ??????????????????????????????? | | ??????????????????????????????? | | ?????????????????????????????"" | | ???########??????????????????"" | | ?###; @; ######?????????????"" | | ?#; #??????????????? | | ?#; * #???? ?????# ?"" | | # ; #???? ????+ ?"" | | ## & #?????# #### "" | | # #?????# | | # =#?? ?# | | # #? ## | | # # # | | # # # # # | | ##; # # ### # | | ?#; # # | | ?#; # """ # | | ?### ; ;;### # "Y" # | | ???# ; h;### # # | | ???### h / | | ?????# ! # | | ?????#### # | | ????????# """ """ # ##### | | ######??# """ """ | | # """""?# """ """ | | # ""T""?# # [ | | # # """ + | | # """ # """ # | | # """ + """ ![[ # * | +----------------------------------------------------+ Best States ------------- Heat Dissipation 37 Energy Generation 17 Energy Capacity 300 Matter Stores 300 Matter Capacity 300 Sight Range 22 Terrain Scan Density 10 Armor Coverage 225 Evasion (%) 72 Launcher Accuracy 20 Core Analysis 6 Recoil Reduction 2 Offensive Hacking 20 Trap Extractor Capacity 6 Item Schematics ----------------- Cld. VTOL Module | -6/Factory | Hacked Hacking Suite | -6/Factory | Hacked Robot Schematics ------------------ None Fabricated ------------ S-27 Virus | x4 | -7/Factory | Preloaded Repaired ---------- Nothing Studied --------- None Alien Tech Used ----------------- None Achievements -------------- Junior Dev My Command Is Your Wish Challenges ------------ None Game ------ Seed LaserGunArachnoskeleton Manual? 0 Play Time 00:48:24 Cumulative 70.2 hours Start 2026.08.26 @ 13:50:40 End 2026.08.26 @ 17:30:44 Sessions 1 Manual Loads 0 Difficulty Rogue Special Mode None Game No. 140 Rogue 133 Adventurer 7 Explorer 0 Win Type - Total 1 Types 1/0/0/0/0/0/0/0/0/0 Lore% 40 Gallery% 43 Achievement% 35 Wizard Run 0 Options --------- Layout 1 ASCII 0 Keyboard 1 Movement Vi Keybinds 0 Fullscreen 1 Font 24/Smallcaps Map View 76x35 Zoom Use 0% Tactical HUD 1 Map Filters NONE Filters NONE Steam 1 RUN: b61f27e2-154f-4013-a855-998fd251b5b5